[Event "USA Championship Women 2022"]
[Site "Saint Louis"]
[Date "2022.10.11"]
[Round "6.6"]
[White "Yu, Jennifer"]
[Black "Lee, Alice"]
[Result "1/2-1/2"]
[ECO "D12"]
[WhiteElo "2297"]
[BlackElo "2263"]
[Annotator "TA"]
[PlyCount "126"]
[EventDate "2022.09.05"]
[EventType "tourn"]
[EventCountry "USA"]
[SourceTitle "playchess.com"]
[Source "ChessBase"]
[SourceQuality "1"]
[TimeControl "40/5400+30:1800+30"]

{[%evp 15,126,16,29,21,26,18,21,30,41,33,34,34,48,49,44,48,93,93,88,88,96,0,0,0,0,0,0,-9,0,-21,0,-6,-6,-10,-7,-7,-7,-15,0,0,0,0,0,0,0,-87,-56,-115,-123,-124,-34,-46,-35,-132,-92,-109,-83,-113,0,0,0,0,0,-8,-8,-8,-8,-8,-8,-8,-8,-81,-51,-51,-8,-30,-8,-81,-81,-86,-8,-81,-81,-82,-85,-170,-176,-206,-48,-209,-18,-138,-8,-166,0,-370,-161,-161,-161,-171,-161,-155,0,0,0,0,0,0,0,0,0,0,0]} 1. d4 {[%emt 0:06:49]} d5 {[%emt 0:00:07]} 2. c4 {[%emt 0:00:22]} c6 {[%emt 0:00:20]} 3. Nf3 {[%emt 0:00:12]} Nf6 {[%emt 0:00:08]} 4. e3 {[%emt 0:00:13]} Bf5 {[%emt 0:00:08]} 5. Nc3 {[%emt 0:00:18]} e6 {[%emt 0:00:08]} 6. Nh4 {[%emt 0:00:29]} Be4 {[%emt 0:00:07]} 7. f3 {[%emt 0:00:03]} Bg6 {[%emt 0:00:07]} 8. Qb3 {[%emt 0:00:08]} Qc7 {[%emt 0:00:11]} 9. Bd2 {[%emt 0:00:44] D12: Slav Defence: 3 Nf3 Nf6 4 e3 Bf5.} Be7 {[%emt 0:00:10]} 10. g3 {[%emt 0:00:47]} dxc4 {[%emt 0:03:06]} 11. Bxc4 {[%emt 0:01:23]} a6 {[%emt 0:03:50]} 12. a4 {[%emt 0:19:45]} Nbd7 {[%emt 0:17:24] [#]} 13. a5 $146 {[%emt 0:07:19]} ({Predecessor:} 13. e4 O-O 14. Nxg6 hxg6 15. e5 Nd5 16. a5 b5 17. axb6 N7xb6 18. O-O Nxc4 19. Qxc4 {1-0 (68) Tratar,M (2475)-Georgiev,V (2573) Sibenik 2010}) 13... Nh5 {[%emt 0:10:17]} 14. Nxg6 {[%emt 0:03:09]} hxg6 {[%emt 0:00:09]} 15. Ne4 {[%emt 0:11:03]} O-O-O {[%emt 0:12:09]} 16. O-O-O {[%emt 0:04:01] White is more active.} Nhf6 {[%emt 0:04:54]} 17. Ng5 {[%emt 0:05:28]} Rdf8 {[%emt 0:02:50]} 18. Bxe6 {[%emt 0:04:25]} fxe6 $11 {[%emt 0:00:45]} 19. Nxe6 {[%emt 0:00:02]} Qd6 {[%emt 0:00:11]} 20. Nxf8 {[%emt 0:02:29]} Rxf8 {[%emt 0:00:49]} 21. Rhf1 {[%emt 0:03:15]} Qd5 {[%emt 0:05:48]} 22. Qc2 {[%emt 0:07:24]} Bd8 {[%emt 0:03:07]} 23. Qxg6 {[%emt 0:13:56]} Bxa5 {[%emt 0:00:31]} 24. Kb1 {[%emt 0:00:46]} Bxd2 {[%emt 0:11:31]} 25. Rxd2 {[%emt 0:00:03]} Qa5 {[%emt 0:00:55]} 26. Qd3 {[%emt 0:01:36]} Nd5 {[%emt 0:00:23][%mdl 1024] Black has compensation.} 27. e4 $1 {[%emt 0:01:19]} Nb4 {[%emt 0:00:17]} 28. Qa3 {[%emt 0:02:14] Prevents Qa2+.} Qb5 {[%emt 0:00:10]} 29. Rc1 {[%emt 0:00:11]} a5 {[%emt 0:03:08]} 30. Qc3 {[%emt 0:02:13]} (30. h4 $11 {remains equal.}) 30... Qh5 $17 {[%emt 0:04:31]} (30... Qa4 31. b3 Qa3 32. Re1 $14) 31. f4 {[%emt 0:01:47]} (31. Rf2 $15) 31... Re8 {[%emt 0:03:30]} 32. d5 {[%emt 0:01:26][%cal Rd5c6]} Qg6 {[%emt 0:01:11]} (32... Rxe4 $17 {And now ...Qg6 would win.} 33. dxc6 bxc6 34. Qxg7 Qe8) 33. dxc6 $15 {[%emt 0:00:44]} Qxe4+ {[%emt 0:00:06]} 34. Ka1 {[%emt 0:00:05]} (34. Qc2 $1 $15 bxc6 35. Qxe4 Rxe4 36. Rdd1) 34... bxc6 $17 {[%emt 0:00:30]} (34... Qxc6 35. Kb1 Qxc3 36. Rxc3+ Kd8 37. Rd6 $11) 35. Rd4 {[%emt 0:00:57]} (35. Qxg7 $2 Qe6 36. Qxd7+ (36. b3 $2 Nc5 $19) 36... Qxd7 37. Rxd7 Kxd7 38. Rd1+ Kc7 $19) 35... Qe6 {[%emt 0:01:31][%csl Gb4][%cal Re6a2]} 36. Qa3 {[%emt 0:00:34] Inhibits Qa2+.} Kb7 {[%emt 0:02:07]} (36... Qe3 $1 $17 {[%cal Re3c1]} 37. Qxe3 Rxe3) 37. Qxa5 $11 {[%emt 0:00:24]} Nd3 {[%emt 0:06:40] Pair of Knights!} 38. f5 {[%emt 0:00:47] Dancing on a razor blade.} (38. Rxd3 Ra8 39. Qxa8+ (39. Rxd7+ $2 Qxd7 40. Qxa8+ Kxa8 $19) 39... Kxa8 $17) 38... Qf7 $40 {[%emt 0:00:33][%mdl 128] Black has some attack.} 39. Rxd3 {[%emt 0:00:33]} Ra8 {[%emt 0:00:05]} 40. Qxa8+ {[%emt 0:00:13]} (40. Rxd7+ $2 Qxd7 41. Qxa8+ Kxa8 $19) 40... Kxa8 {[%emt 0:00:02]} 41. Rxc6 {[%emt 0:02:32] aiming for Rc7.} Qxf5 {[%emt 0:05:41]} 42. Rb3 {[%emt 0:07:20][%cal Rc6a6]} Nc5 {[%emt 0:04:07] Against Ra6+} 43. Rc3 {[%emt 0:00:38]} (43. Rb4 $1 $11) 43... Qf1+ {[%emt 0:03:46]} 44. Ka2 {[%emt 0:00:04]} Qf7+ {[%emt 0:00:19]} 45. Ka3 {[%emt 0:04:13]} Ne4 {[%emt 0:02:23]} (45... Qa7+ $2 46. Kb4 Qb8+ 47. Kxc5 $16) 46. Rc1 {[%emt 0:12:17]} (46. Rc8+ $11 Kb7 47. Rc1) 46... Nd2 $17 {[%emt 0:05:37][%csl Gd2][%cal Rf7b3]} 47. Kb4 {[%emt 0:00:47]} Kb7 {[%emt 0:04:21]} ({Black should try} 47... Qb3+ $17 48. Ka5 Qa2+ 49. Kb6 Qa7+ 50. Kb5 Qd7) 48. R6c3 {[%emt 0:03:11]} (48. Rc7+ $1 $11 Qxc7 49. Rxc7+ Kxc7 50. Kc5) 48... Qe7+ {[%emt 0:00:23]} 49. Ka4 {[%emt 0:01:23]} Qd7+ {[%emt 0:01:36]} 50. Ka3 {[%emt 0:00:43]} (50. Ka5 $17 {keeps fighting.}) 50... Qd6+ $19 {[%emt 0:00:28]} 51. b4 {[%emt 0:00:23]} Ne4 $2 {[%emt 0:02:01]} (51... Qa6+ $1 $19 52. Kb2 Qf6) 52. Rc4 $2 {[%emt 0:01:00]} (52. Rc7+ $1 $15 Qxc7 53. Rxc7+ Kxc7 54. Kb2) 52... Nf2 $2 {[%emt 0:02:41]} (52... Qa6+ $19 53. Kb2 Nd6 54. Rc7+ Kb8) 53. Kb3 {[%emt 0:01:59]} (53. Rc5 $11 {keeps the balance.}) 53... Ng4 {[%emt 0:01:34]} 54. Rc5 $2 {[%emt 0:00:38]} ({Not} 54. Rxg4 $2 Qd3+ 55. Rc3 Qd1+ 56. Kb2 Qxg4 $19) (54. Rc7+ $1 $11 Kb6 55. h3) 54... Kb6 $2 {[%emt 0:00:59]} (54... Nxh2 55. Rb5+ Ka6 56. Rcc5 $17) (54... Ne5 $19 {...Qe6+ is the strong threat.} 55. h4 Qd3+ 56. R1c3 Qd1+ 57. Ka3 Qa1+ 58. Kb3 Qb1+ 59. Ka4 Qa2+ 60. Ra3 Qb2) 55. Ra1 $2 {[%emt 0:00:34][%mdl 8192]} (55. Rc6+ $1 $11 {and White stays safe.} Qxc6 56. Rxc6+ Kxc6 57. h4) 55... Nxh2 {[%emt 0:00:28]} (55... Qe6+ $142 56. Ka3 Qe3+ 57. Ka4 Qe2) 56. Raa5 {[%emt 0:00:16] [#]} Qd1+ $1 {[%emt 0:01:49]} ({Weaker is} 56... Qxg3+ 57. Ka4 $11) 57. Ka3 {[%emt 0:00:34] [#]} Qe2 $1 {[%emt 0:00:37] Strongly threatening ...Nf3.} 58. Re5 {[%emt 0:00:21]} ({Don't go for} 58. Rc3 $2 Ng4 59. Rd5 Nf6 $19) 58... Qc4 {[%emt 0:01:44]} (58... Qf3+ $17 59. Ka4 Qd1+ 60. Ka3 Nf3 61. Reb5+ Kc6 62. Rc5+ Kd6 63. Ra6+ Kd7 64. Ra7+ Ke6 65. Ra6+ Ke7 66. Ra7+ Ke6 67. Ra6+ Ke7 68. Ra7+ Ke6) 59. Rec5 $11 {[%emt 0:00:14] The position is equal.} Qe4 {[%emt 0:01:11]} 60. Rab5+ {[%emt 0:00:16]} Ka6 {[%emt 0:00:33]} 61. Ra5+ {[%emt 0:00:19]} Kb6 {[%emt 0:00:12]} 62. Rab5+ {[%emt 0:00:31]} Ka6 {[%emt 0:00:05]} 63. Ra5+ Kb6 {[%emt 0:00:05] Weighted Error Value: White=0.32/Black=0.31} 1/2-1/2

[Event "USA Championship Women 2022"]
[Site "Saint Louis"]
[Date "2022.10.11"]
[Round "6.7"]
[White "Wu, Rochelle"]
[Black "Morris-Suzuki, Sophie"]
[Result "0-1"]
[ECO "D00"]
[WhiteElo "2317"]
[BlackElo "2126"]
[Annotator "TA"]
[PlyCount "120"]
[EventDate "2022.09.05"]
[EventType "tourn"]
[EventCountry "USA"]
[SourceTitle "playchess.com"]
[Source "ChessBase"]
[SourceQuality "1"]
[TimeControl "40/5400+30:1800+30"]

{[%evp 9,120,-4,-5,-20,-18,-87,-84,-81,-56,-58,-51,-70,-73,-75,-79,-77,-66,-105,-75,-189,-109,-101,-102,-140,-36,-258,-254,-252,-260,-265,-248,-247,-241,-228,-220,-271,-185,-196,-187,-194,-175,-184,-175,-216,-223,-235,-208,-251,-250,-267,-264,-255,-206,-208,-136,-200,-193,-230,-132,-318,-324,-320,-299,-302,-304,-440,-415,-425,-392,-369,-327,-311,-302,-282,-256,-432,-436,-672,-672,-672,-672,-665,-665,-639,-614,-6245,-6157,-29964,-29971,-29969,-29972,-29970,-29971,-29963,-12797,-29980,-29979,-29985,-29986,-29986,-29986,-29986,-29987,-29990,-29991,-29991,-29992,-29995,-29996,-29996,-29995,-29996,-29997]} 1. d4 {[%emt 0:01:12]} d5 {[%emt 0:00:14]} 2. Nc3 {[%emt 0:00:10]} e6 {[%emt 0:01:54]} 3. Bf4 {[%emt 0:00:47]} a6 {[%emt 0:01:59]} 4. e3 {[%emt 0:00:29]} Nf6 {[%emt 0:10:45]} 5. g4 {[%emt 0:01:48]} Bb4 {[%emt 0:03:43]} 6. Bd3 {[%emt 0:12:48] D00: 1 d4 d5: Unusual lines.} c5 {[%emt 0:03:17]} 7. dxc5 {[%emt 0:09:01]} (7. g5 $1 $11 {remains equal.} Nfd7 8. Nf3) 7... Nc6 $17 {[%emt 0:08:58] [#]} 8. Nf3 $146 {[%emt 0:33:46] Inhibits e5. Black is better.} ({Predecessor:} 8. g5 Nd7 9. h4 Nxc5 10. Nf3 Na4 11. Qd2 Nxb2 12. a3 Qa5 13. axb4 Qxa1+ 14. Nd1 Qxd1+ 15. Qxd1 Nxd1 16. Kxd1 Nxb4 {1-0 (36) He,A (2443)-Chernobay,A (2484) Chess.com INT 2022}) 8... Qa5 {[%emt 0:13:56]} 9. Qd2 {[%emt 0:04:05]} Nd7 {[%emt 0:08:59]} 10. Bd6 {[%emt 0:07:00]} Nxc5 {[%emt 0:01:29]} 11. Bxc5 {[%emt 0:00:25]} Qxc5 {[%emt 0:01:44]} 12. a3 {[%emt 0:00:55]} Ba5 {[%emt 0:02:43]} 13. O-O {[%emt 0:03:46]} (13. b4 $2 Nxb4 $1 {[%mdl 512]} 14. axb4 Bxb4 $19) 13... Bd7 {[%emt 0:11:29]} 14. Na4 {[%emt 0:08:46]} (14. b4 $2 Nxb4 $1 {[%mdl 512]} 15. Ne2 (15. axb4 $2 Bxb4 16. Na4 Bxa4 $19) 15... Nxd3 16. Qxd3 Bb5 $19) (14. e4 $17) 14... Qd6 {[%emt 0:06:57]} (14... Qe7 $1 $19 15. b4 Bc7) 15. b4 {[%emt 0:00:09]} Bc7 {[%emt 0:00:20]} 16. Nc5 {[%emt 0:00:08] [#]} Bc8 {[%emt 0:00:48]} (16... Ne5 17. Nxe5 Qxe5 18. f4 $16) (16... e5 $1 $17 {[%cal Re5e4] aiming for ...e4.} 17. Nxd7 (17. Nxb7 Qf6 $17) 17... Qxd7) 17. e4 $2 {[%emt 0:02:16] [#]} ({White should try} 17. c4 $15) 17... Nd4 $1 $19 {[%emt 0:01:03][%mdl 512]} 18. Kg2 {[%emt 0:00:22]} Nxf3 {[%emt 0:00:47]} 19. Kxf3 {[%emt 0:00:06]} b6 {[%emt 0:00:48]} (19... Qxh2 20. Rh1 Qe5 21. exd5 $17) (19... dxe4+ 20. Nxe4 Qxh2 21. Rh1 $17) 20. Nb3 {[%emt 0:01:54]} Bb7 {[%emt 0:01:21]} (20... Qxh2 $2 21. Rh1 Qe5 22. Rh5 Qf6+ 23. Kg2) 21. Qe3 {[%emt 0:03:47]} O-O {[%emt 0:02:27]} 22. Ke2 {[%emt 0:02:31]} f5 {[%emt 0:01:53]} ({Wrong is} 22... Qxh2 $2 23. Rh1 Qe5 24. exd5 $17) 23. e5 {[%emt 0:02:16]} Qxe5 {[%emt 0:00:51]} 24. gxf5 {[%emt 0:00:02]} exf5 {[%emt 0:00:48] Strongly threatening ...Qf6.} 25. Qxe5 {[%emt 0:00:04]} Bxe5 {[%emt 0:00:13]} 26. Rab1 {[%emt 0:01:22]} Rae8 {[%emt 0:07:08]} 27. Kd2 {[%emt 0:00:04]} Rc8 {[%emt 0:00:17]} ({Don't go for} 27... Bxh2 $2 28. f4) 28. f4 {[%emt 0:00:35]} Bc3+ {[%emt 0:00:19]} 29. Ke2 {[%emt 0:00:14]} Rce8+ {[%emt 0:02:14]} 30. Kf2 {[%emt 0:00:01]} Bf6 {[%emt 0:00:28]} 31. Kg1 {[%emt 0:02:56]} d4 {[%emt 0:03:33]} 32. Rbe1 {[%emt 0:01:52]} (32. a4 $17) 32... Be4 {[%emt 0:00:20]} 33. Nd2 {[%emt 0:00:07][%cal Rd2e4] [#]} Bh4 {[%emt 0:00:55]} (33... Bxd3 $1 $19 34. cxd3 Re3 35. Rxe3 dxe3) 34. Re2 $2 {[%emt 0:00:59] Loses the game.} (34. Nxe4 $17 {was called for.} Bxe1 35. Nd6) 34... Bxd3 {[%emt 0:01:12] A strong pair of Bishops.} 35. Rxe8 {[%emt 0:00:01]} Rxe8 {[%emt 0:00:02]} 36. cxd3 {[%emt 0:00:04][%mdl 4096] Endgame KRB-KRN} Re3 {[%emt 0:01:15]} 37. Rc1 {[%emt 0:00:58]} (37. b5 $142 axb5 38. Nf3) 37... Rxd3 {[%emt 0:00:25]} 38. Rc8+ {[%emt 0:00:06]} Kf7 {[%emt 0:00:08]} 39. Nc4 {[%emt 0:01:01] Black must now prevent Ne5+.} Bf6 {[%emt 0:01:11]} 40. Nxb6 {[%emt 0:01:05]} Rc3 {[%emt 0:00:58]} ({Not} 40... Rxa3 $2 41. Rc7+ Kg6 42. Rd7) 41. Kf2 {[%emt 0:02:12]} Rxa3 {[%emt 0:07:04]} 42. Ra8 $2 {[%emt 0:01:19]} (42. Rc7+ Kg6 43. Nd5) 42... Ra2+ {[%emt 0:03:49]} 43. Kf1 {[%emt 0:01:15]} (43. Ke1 $142 Rxh2 44. Rxa6) 43... d3 {[%emt 0:06:23] Threatens to win with ...Ra1+.} 44. Nc4 {[%emt 0:00:47]} Ra1+ {[%emt 0:02:43]} 45. Kf2 {[%emt 0:00:16]} Bd4+ {[%emt 0:00:49]} 46. Kg3 {[%emt 0:00:16]} Rc1 {[%emt 0:01:15]} 47. Nd6+ {[%emt 0:00:15]} Ke6 {[%emt 0:08:00] ( -> ...d2)} 48. Rxa6 {[%emt 0:00:06]} Ra1 {[%emt 0:01:53]} 49. Rxa1 {[%emt 0:00:32]} Bxa1 {[%emt 0:00:07] KB-KN} 50. Nc4 {[%emt 0:00:05]} Kd5 {[%emt 0:01:20]} 51. Ne3+ {[%emt 0:01:16]} Ke4 {[%emt 0:00:26]} 52. Nd1 {[%emt 0:00:11]} Bd4 {[%emt 0:00:23] Black mates.} 53. b5 {[%emt 0:00:14]} d2 {[%emt 0:00:38]} 54. h3 {[%emt 0:00:35]} g6 {[%emt 0:01:19][%cal Bg7g6,Bg6g5,Bg5g4][%mdl 32]} 55. Kg2 {[%emt 0:00:19]} Kxf4 {[%emt 0:00:39]} 56. Kf1 {[%emt 0:00:02]} Kf3 {[%emt 0:01:04]} 57. h4 {[%emt 0:00:07]} f4 {[%emt 0:00:30]} 58. h5 {[%emt 0:00:08]} g5 {[%emt 0:00:16]} 59. b6 {[%emt 0:00:09]} Bxb6 {[%emt 0:00:17]} 60. h6 {[%emt 0:00:08]} g4 {[%emt 0:00:40] Weighted Error Value: White=0.62/Black=0.13 (very precise)} 0-1

[Event "USA Championship Women 2022"]
[Site "Saint Louis"]
[Date "2022.10.12"]
[Round "7.1"]
[White "Morris-Suzuki, Sophie"]
[Black "Paikidze, Nazi"]
[Result "0-1"]
[ECO "B12"]
[WhiteElo "2126"]
[BlackElo "2354"]
[Annotator "TA"]
[PlyCount "78"]
[EventDate "2022.09.05"]
[EventType "tourn"]
[EventCountry "USA"]
[SourceTitle "playchess.com"]
[Source "ChessBase"]
[SourceQuality "1"]
[TimeControl "40/5400+30:1800+30"]

{[%evp 13,78,32,29,8,20,25,20,10,19,18,22,0,7,3,18,12,14,-36,-38,-72,-17,-101,0,-93,-85,-88,-98,-103,-102,-145,-95,-95,-99,-110,-105,-216,-213,-318,-296,-306,-314,-330,-286,-347,-367,-355,-352,-391,-374,-404,-392,-539,-522,-673,-559,-1178,-1252,-3137,-2635,-29985,-29986,-29991,-29992,-29993,-29994,-29994,-29995]} 1. e4 {[%emt 0:00:02]} c6 {[%emt 0:00:05]} 2. d4 {[%emt 0:00:08]} d5 {[%emt 0:00:06]} 3. e5 {[%emt 0:00:10]} Bf5 {[%emt 0:00:08]} 4. h4 {[%emt 0:00:10]} h5 {[%emt 0:00:11]} 5. c4 {[%emt 0:10:14]} e6 {[%emt 0:00:19]} 6. Nc3 {[%emt 0:00:27]} Nd7 {[%emt 0:04:22]} 7. cxd5 {[%emt 0:03:04]} cxd5 {[%emt 0:08:20]} 8. Nge2 {[%emt 0:02:43] B12: Caro-Kann: Advance Variation.} Ne7 {[%emt 0:01:30]} 9. Ng3 {[%emt 0:10:06]} Bg6 {[%emt 0:01:06]} 10. Bd3 {[%emt 0:08:52] The position is equal.} Bxd3 {[%emt 0:00:56]} 11. Qxd3 {[%emt 0:00:02]} Nc6 {[%emt 0:01:15]} 12. Bg5 {[%emt 0:01:05]} Qb6 {[%emt 0:06:52]} 13. Nge2 {[%emt 0:00:42]} a6 {[%emt 0:15:10]} 14. O-O {[%emt 0:02:37] [#]} Be7 $146 {[%emt 0:00:50]} ({Predecessor:} 14... Rc8 15. Rac1 Be7 16. Rfd1 Qd8 17. Bxe7 Qxe7 18. Qg3 g6 19. Nf4 b5 20. Nce2 Nb6 21. b3 Kd7 {½-½ (27) Fernandez Fuentes,F (2074)-Amigo Barbera,F Tarragona 2000}) 15. Be3 {[%emt 0:12:38]} (15. Rab1 $11) 15... Bxh4 $15 {[%emt 0:11:02]} ({Resist} 15... Qxb2 16. Rfb1 Nb4 17. Rxb2 $14) 16. Rab1 {[%emt 0:03:56]} Be7 {[%emt 0:02:56] Black is more active.} (16... Qc7 $17) 17. a3 {[%emt 0:15:52]} (17. Nf4 $1 $11) 17... Na5 {[%emt 0:04:03]} ({Black should play} 17... Qc7 $17) 18. b4 {[%emt 0:13:23]} (18. Nf4 $1 $11 {keeps the balance.}) 18... Nc4 $17 {[%emt 0:00:18]} 19. Nf4 {[%emt 0:00:18]} Qc6 {[%emt 0:05:06]} 20. a4 {[%emt 0:06:28][%cal Oc3d5]} b5 {[%emt 0:04:02]} 21. Ra1 {[%emt 0:05:28]} Rc8 {[%emt 0:00:58]} (21... bxa4 $142 22. Nxa4 Bxb4) 22. axb5 {[%emt 0:00:19]} axb5 {[%emt 0:00:04][%cal Ba6b5,Bb5b4][%mdl 32]} 23. Rfc1 {[%emt 0:00:55]} Bxb4 {[%emt 0:11:07]} 24. Nfe2 {[%emt 0:01:33]} (24. Na2 $17 Bf8 25. Bd2) 24... Be7 $19 {[%emt 0:02:41]} 25. f4 {[%emt 0:00:59]} (25. Nf4 $142) 25... g6 {[%emt 0:02:22]} 26. Bf2 {[%emt 0:00:13]} b4 {[%emt 0:02:09]} 27. Nd1 {[%emt 0:00:19]} Qb7 {[%emt 0:01:21]} 28. Rab1 {[%emt 0:00:27]} Ra8 {[%emt 0:01:56]} 29. Rb3 {[%emt 0:00:57]} O-O {[%emt 0:02:01]} 30. Ne3 {[%emt 0:00:37]} Nxe3 {[%emt 0:01:04]} ({Not} 30... Ra2 $2 31. Nxc4 dxc4 32. Rxc4 $19) 31. Qxe3 {[%emt 0:00:42]} Rfc8 {[%emt 0:02:52]} 32. Rxc8+ {[%emt 0:00:26]} Qxc8 {[%emt 0:00:05]} 33. f5 {[%emt 0:00:19]} exf5 {[%emt 0:01:04]} 34. e6 {[%emt 0:00:39]} Ra1+ {[%emt 0:01:49]} 35. Kh2 {[%emt 0:00:13]} Nf6 {[%emt 0:00:13] [#] ( -> ...Ng4+)} 36. exf7+ {[%emt 0:00:38]} Kxf7 {[%emt 0:00:04] Black mates.} 37. Qf4 {[%emt 0:00:42]} Ng4+ {[%emt 0:01:34]} 38. Kg3 {[%emt 0:00:14]} h4+ {[%emt 0:00:29]} 39. Kf3 {[%emt 0:00:12]} Rf1 {[%emt 0:00:08] Weighted Error Value: White=0.85/Black=0.18 (very precise)} 0-1

[Event "USA Championship Women 2022"]
[Site "Saint Louis"]
[Date "2022.10.12"]
[Round "7.2"]
[White "Lee, Megan"]
[Black "Yu, Jennifer"]
[Result "1-0"]
[ECO "C45"]
[WhiteElo "2226"]
[BlackElo "2297"]
[Annotator "TA"]
[PlyCount "125"]
[EventDate "2022.09.05"]
[EventType "tourn"]
[EventCountry "USA"]
[SourceTitle "playchess.com"]
[Source "ChessBase"]
[SourceQuality "1"]
[TimeControl "40/5400+30:1800+30"]

{[%evp 11,125,-5,13,0,2,0,7,0,14,24,24,21,67,54,66,52,58,61,60,67,71,43,91,38,56,16,68,60,59,0,31,-49,-14,-6,14,28,24,20,43,36,125,118,123,107,266,245,289,290,296,242,413,414,420,345,391,312,381,392,818,375,521,517,474,447,477,472,472,473,505,447,702,662,589,589,569,546,1063,789,962,946,1141,1105,1643,1679,1427,1320,1871,1801,5210,3966,29977,29978,29977,29979,29980,29981,29985,29982,29982,29983,29983,29984,29984,29983,29986,29984,29984,29985,29985,29986,29986,29987,29987,29988,29988,29989]} 1. e4 {[%emt 0:00:03]} e5 {[%emt 0:00:12]} 2. Nf3 {[%emt 0:00:05][%cal Bg1f3,Bf3d4,Bd4b3][%mdl 32]} Nc6 {[%emt 0:00:10]} 3. d4 {[%emt 0:00:08]} exd4 {[%emt 0:00:30]} 4. Nxd4 {[%emt 0:00:07]} Bc5 {[%emt 0:02:31]} 5. Nb3 {[%emt 0:00:07]} Bb6 {[%emt 0:00:10]} 6. Nc3 {[%emt 0:00:06]} Nge7 {[%emt 0:00:34]} 7. Bg5 {[%emt 0:00:43] C45: Scotch Game.} f6 {[%emt 0:03:42] 7...h6 is the fancy move.} 8. Bf4 {[%emt 0:00:48]} O-O {[%emt 0:04:42]} 9. a4 {[%emt 0:00:58] [#] a5 is the strong threat. The position is equal.} a5 {[%emt 0:02:14]} 10. Qd2 {[%emt 0:02:13]} d6 {[%emt 0:03:43]} 11. O-O-O {[%emt 0:01:07]} Ne5 {[%emt 0:04:08] [#]} (11... Be6 $11) 12. Be3 $146 {[%emt 0:10:20]} ({Predecessor:} 12. h4 Be6 13. h5 N7c6 14. h6 g6 15. Nd5 Ba7 16. Bg3 Nb4 17. Nxb4 axb4 18. Qxb4 {1-0 (27) Engel,L (2363)-Loukopoulos,P (1959) Mamaia 2017}) 12... Bxe3 {[%emt 0:06:34]} 13. Qxe3 {[%emt 0:00:53]} f5 {[%emt 0:16:47]} 14. f4 {[%emt 0:05:25]} Ng4 {[%emt 0:00:13]} 15. Qd2 {[%emt 0:03:16]} fxe4 {[%emt 0:08:48] And now ...e3 would win.} 16. Nxe4 {[%emt 0:04:05]} Bf5 {[%emt 0:11:40]} (16... d5 $14) 17. Nc3 {[%emt 0:05:33]} (17. h3 $16) 17... Nf6 {[%emt 0:01:58]} 18. Re1 {[%emt 0:09:47]} Bg6 {[%emt 0:11:35]} (18... d5 $11) 19. Rg1 {[%emt 0:03:48]} Bf7 {[%emt 0:11:39]} 20. g3 {[%emt 0:06:54]} (20. Nd4 $14) 20... Ned5 {[%emt 0:03:42]} 21. Nb5 {[%emt 0:11:17]} ({White should play} 21. Nd4 $14) 21... c6 {[%emt 0:00:00]} 22. N5d4 {[%emt 0:00:19]} Nb6 {[%emt 0:00:00]} 23. Ne6 {[%emt 0:04:07]} (23. Nxa5 $2 Nxa4 24. b4 c5 $19) 23... Bxe6 {[%emt 0:00:00]} 24. Rxe6 {[%emt 0:00:03]} d5 {[%emt 0:01:45]} 25. Qd4 {[%emt 0:03:27]} Nfd7 {[%emt 0:01:34]} ({Black should try} 25... Re8 $14 26. f5 Nbd7) 26. Bh3 $16 {[%emt 0:00:50] White is much more active.} Rf6 {[%emt 0:03:01]} 27. Re2 {[%emt 0:06:43] Black must now prevent Rge1.} Qc7 $2 {[%emt 0:01:12] A mistake that costs the game.} (27... Kh8 $16 {keeps fighting.}) 28. Re7 $18 {[%emt 0:01:53] Threatens to win with Nc5.} Qd6 {[%emt 0:00:36] Prevents Nc5.} 29. Rge1 {[%emt 0:00:12]} c5 {[%emt 0:00:12]} 30. Qf2 {[%emt 0:01:35]} d4 $2 {[%emt 0:00:50]} (30... Qc6 31. Kb1 Kh8) 31. Qf3 {[%emt 0:01:56]} c4 {[%emt 0:00:37]} 32. Qxb7 {[%emt 0:01:40]} (32. Qg4 Rf7 33. Rxf7 Kxf7 $16) 32... Rb8 {[%emt 0:00:29] [#]} 33. Qa7 {[%emt 0:00:53][%cal Rh3d7]} cxb3 {[%emt 0:00:31]} 34. Bxd7 {[%emt 0:00:20] Intending Be6+ and mate.} Kh8 $2 {[%emt 0:00:38]} (34... bxc2 {leads to mate.} 35. Be6+ Kh8 36. Rxg7 Rh6 37. Bf5 Qf8 38. Rxh7+ Kg8 39. Be6+ Rxe6 40. Rxe6) (34... d3 35. cxd3 (35. Be6+ Kh8 $16) 35... Qc5+ 36. Kb1 Nxd7 37. Qxd7 Rc8 38. Rxg7+ Kf8 39. Qe7+ (39. Rxh7 $2 Qc2+ 40. Ka1 Qc1+ 41. Rxc1 Rxc1#) 39... Qxe7 40. Rgxe7 (40. Rexe7 Rfc6 $11) 40... Rf7) 35. Qxb8+ {[%emt 0:02:55]} Qxb8 {[%emt 0:00:03]} 36. Re8+ {[%emt 0:00:04]} Rf8 {[%emt 0:00:02]} 37. Rxb8 {[%emt 0:00:06]} Rxb8 {[%emt 0:00:02]} 38. Re8+ {[%emt 0:00:07]} Rxe8 {[%emt 0:00:02]} 39. Bxe8 {[%emt 0:00:04][%mdl 4096] Endgame KB-KN} Kg8 {[%emt 0:01:09]} 40. cxb3 {[%emt 0:08:56]} Kf8 {[%emt 0:00:08]} (40... Nd5 $142 41. Kd2 Nb4) 41. Bc6 {[%emt 0:31:21]} Ke7 {[%emt 0:30:04]} 42. b4 {[%emt 0:02:39]} axb4 {[%emt 0:00:00]} 43. a5 {[%emt 0:00:00]} Nc8 {[%emt 0:00:00]} 44. Bb7 {[%emt 0:00:00]} Na7 {[%emt 0:00:00]} 45. Kd2 {[%emt 0:00:00]} Kd6 {[%emt 0:00:00]} 46. Kd3 {[%emt 0:00:00]} Kc5 {[%emt 0:00:00]} 47. g4 {[%emt 0:00:00]} Nb5 {[%emt 0:00:00]} 48. f5 {[%emt 0:00:00][%cal Bf4f5,Bf5f6,Bf6f7][%mdl 32]} h6 {[%emt 0:00:00]} 49. h4 {[%emt 0:00:00][%cal Bh2h4,Bh4g5][%mdl 32]} b3 {[%emt 0:00:00]} 50. a6 {[%emt 0:00:00]} Kb6 {[%emt 0:00:00]} 51. g5 {[%emt 0:00:00] White mates.} hxg5 {[%emt 0:00:00]} 52. hxg5 {[%emt 0:00:00]} Nd6 {[%emt 0:00:00]} 53. f6 {[%emt 0:00:00]} g6 {[%emt 0:00:00]} 54. Kxd4 {[%emt 0:00:00]} Nf7 {[%emt 0:00:00]} 55. Bd5 {[%emt 0:00:00]} Nxg5 {[%emt 0:00:00]} 56. f7 {[%emt 0:00:00]} Nh7 {[%emt 0:00:00]} 57. Be4 {[%emt 0:00:00]} Kxa6 {[%emt 0:00:00]} 58. Bxg6 {[%emt 0:00:00]} Nf8 {[%emt 0:00:00]} 59. Bf5 {[%emt 0:00:00]} Kb6 {[%emt 0:00:00]} 60. Ke5 {[%emt 0:00:00]} Kc7 {[%emt 0:00:00]} 61. Kf6 {[%emt 0:00:00]} Kd6 {[%emt 0:00:00]} 62. Kg7 {[%emt 0:00:00]} Ke7 {[%emt 0:00:00]} 63. Kg8 {[%emt 0:00:00] Weighted Error Value: White=0.23 (precise) /Black=0.36} 1-0